Cogmind - Beta 13 @@@ ROGUE MODE // 2024.04.02 @ 14:19:44 Player: KoT Result: Destroyed by G-47 Trooper with Particle Gun Performance ------------- Evolutions (0) 0 Regions Visited (1) 200 Robots Destroyed (22) 110 Value Destroyed (396) 396 Prototype IDs (2) 40 Alien Tech Used (0) 0 Bonus (0) 0 TOTAL SCORE: 746 Bonus ------- None Cogmind --------- Core Integrity 0/250 Matter 287/300 Energy 100/100 System Corruption 0% Temperature Cool (35) Movement Walking (400) Ox4 Location -10/Materials Parts ------- > --- POWER (1) -------- (None) > --- PROPULSION (2) --- Aluminum Leg > --- UTILITY (2) ------ High-capacity Storage Unit Terrain Scanner > --- WEAPON (2) ------- Assault Rifle Light Assault Rifle > --- INVENTORY (20) --- Ion Engine Light Treads Light Treads Heat Sink High-capacity Storage Unit High-capacity Storage Unit Hacking Suite Hacking Suite Small Laser Assault Rifle Assault Rifle Assault Rifle Light Assault Rifle Grenade Launcher Grenade Launcher Datajack Peak State ------------ > --- POWER ------------ Light Ion Engine > --- PROPULSION ------- Aluminum Leg Aluminum Leg > --- UTILITY ---------- High-capacity Storage Unit Terrain Scanner > --- WEAPON ----------- Light Assault Rifle Light Assault Rifle > --- INVENTORY -------- Ion Engine Light Treads Light Treads Heat Sink High-capacity Storage Unit High-capacity Storage Unit Hacking Suite Hacking Suite Small Laser Assault Rifle Assault Rifle Assault Rifle Assault Rifle Light Assault Rifle Grenade Launcher Datajack [Rating: 9] Favorites ----------- Power Light Ion Engine Engine Light Ion Engine Propulsion Aluminum Leg Treads Light Treads Leg Aluminum Leg Utility Terrain Scanner Device Terrain Scanner Storage High-capacity Storage Unit Weapon Light Assault Rifle Energy Gun Small Laser Ballistic Gun Light Assault Rifle Special Melee Weapon Datajack Build | -11 -10 ------- Run | Yrd Mat Slots Evolved . | . . Power . | . . Propulsion . | . . Utility . | . . Weapon . | . . Parts Attached 23 | 6 17 Power 4 | 1 3 Engine 4 | 1 3 Core . | . . Reactor . | . . Propulsion 6 | 2 4 Treads 4 | 2 2 Leg 2 | . 2 Wheel . | . . Hover . | . . Flight . | . . Utility 5 | 1 4 Device 2 | . 2 Storage 3 | 1 2 Processor . | . . Hackware . | . . Protection . | . . Artifact . | . . Weapon 8 | 2 6 Energy Gun 1 | 1 . Energy Cannon . | . . Ballistic Gun 6 | 1 5 Ballistic Cannon . | . . Launcher . | . . Special Weapon . | . . Impact Weapon . | . . Slashing Weapon . | . . Piercing Weapon . | . . Special Melee Weapon 1 | . 1 Unidentified Prototypes . | . . Parts Lost 9 | . 9 Power 3 | . 3 Propulsion 3 | . 3 Utility . | . . Weapon 3 | . 3 Highest Loss Streak 3 | . 3 To Critical Strikes . | . . Average Slot Usage (%) 95 | . 95 Engine 12 | . 12 Treads 7 | . 7 Leg 18 | . 18 Device 13 | . 13 Storage 14 | . 14 Energy Gun 1 | . 1 Ballistic Gun 25 | . 25 Special Melee Weapon 1 | . 1 Naked Turns . | . . Heaviest Build 46 | 10 46 Greatest Support 40 | 40 40 Greatest Overweight (x) 14 | . 14 Average Overweight (x) 1 | . 1 Largest Inventory Capacity 20 | 8 20 Average Capacity 17 | 6 17 Most Carried 17 | 5 17 Average Carried 7 | 1 7 Final Capacity 20 | 8 20 Final Carried 16 | 1 16 Class Distribution -------------------- 65% | Scavenger-Mutant 34% | Mutant Dominant Class ---------------- Scavenger-Mutant | -10/Materials Resources | -11 -10 ----------- Run | Yrd Mat Matter Collected 503 | 204 299 Remotely . | . . Salvage Created 689 | . 689 Parts 42 | . 42 Haulers Intercepted 2 | . 2 Recyclers Shooed 3 | . 3 Parts Field Recycled . | . . Retrieved Matter . | . . Parts Self-Destructed . | . . Prevented . | . . Kills | -11 -10 ------- Run | Yrd Mat Combat Hostiles Destroyed 14 | . 14 Guns 14 | . 14 Classes Destroyed 8 | . 8 Worker 1 | . 1 Builder 1 | . 1 Hauler 2 | . 2 Recycler 1 | . 1 Operator 2 | . 2 Watcher 1 | . 1 Swarmer 6 | . 6 Grunt 8 | . 8 Best Kill Streak 7 | . 7 Combat Bots Only 6 | . 6 Max Kills in Single Turn 2 | . 2 Gunslinging . | . . Exploded . | . . Melee . | . . Uniques/NPCs Destroyed . | . . Combat | -11 -10 -------- Run | Yrd Mat Hostile Shots Fired 132 | . 132 Missed 35 | . 35 Damage Taken 1062 | . 1062 Core 254 | . 254 Absorbed by Shields . | . . Core Remaining (%) 100 | 100 . Volleys Fired 85 | . 85 Largest 2 | . 2 Hottest 60 | . 60 Shots Fired 161 | . 161 Gun 161 | . 161 Cannon . | . . Launcher . | . . Special . | . . Kinetic 131 | . 131 Thermal 30 | . 30 Explosive . | . . Electromagnetic . | . . Robot Hit Streak 17 | . 17 Robot Miss Streak 3 | . 3 Penetration Max . | . . Secondary Targets 5 | . 5 Max Gunslinging Chain 1 | . 1 Shots Hit Robots 104 | . 104 Core Hits 41 | . 41 Critical Kills . | . . Critical Parts Destroyed 1 | . 1 Critical Strikes 1 | . 1 Destroy 1 | . 1 Melee Attacks . | . . Impact . | . . Slashing . | . . Piercing . | . . Sneak Attacks . | . . Combat Hostiles . | . . Follow-up Attacks . | . . Damage Inflicted 1001 | . 1001 Guns 956 | . 956 Cannons . | . . Explosions . | . . Melee . | . . Ramming 45 | . 45 Kinetic 718 | . 718 Thermal 238 | . 238 Explosive . | . . Electromagnetic . | . . Impact . | . . Slashing . | . . Piercing . | . . Highest Corruption . | . . Average Corruption . | . . Corruption Purged . | . . Corruption Blocked . | . . Overload Shots . | . . Overflow Damage . | . . Projectiles . | . . Explosions . | . . Melee . | . . Knockbacks 1 | . 1 Impact 1 | . 1 Kinetic . | . . Secondary . | . . Self-Inflicted Damage . | . . Shots . | . . Rammed . | . . Targets Rammed 7 | . 7 Kicked 7 | . 7 Crushed . | . . Highest Temperature 98 | . 98 Average Temperature 21 | . 21 Received Heat Transfer 525 | . 525 Siege Activations . | . . Robots Corrupted . | . . Combat Hostiles . | . . Parts Fried . | . . Impact Corruptions . | . . Robots Melted . | . . Combat Hostiles . | . . Parts Melted . | . . Heat Transferred 525 | . 525 Parts Sabotaged . | . . Parts Stolen . | . . Parts Stripped . | . . Power Chain Reactions . | . . Alert | -11 -10 ------- Run | Yrd Mat Peak Influence 324 | . 324 Initial . | . . Average 57 | . 58 Maximum Alert Level 1 | . 1 Low Security (%) 88 | 100 87 Level 1 11 | . 12 Level 2 . | . . Level 3 . | . . Level 4 . | . . Level 5 . | . . High Security . | . . Max Security . | . . Squads Dispatched 3 | . 3 Investigation 1 | . 1 Extermination . | . . Reinforcement 2 | . 2 Assault . | . . Garrison . | . . Intercept . | . . Searches Triggered . | . . Construction Impeded . | . . Haulers Reinforced . | . . Active Scanning Responses . | . . Cargo Convoy Interrupts . | . . Stealth | -11 -10 --------- Run | Yrd Mat Distress Signals 1 | . 1 Communications Jammed . | . . Distress Signals . | . . Times Spotted 25 | . 25 Peak Tracking Total 4 | . 4 Tactical Retreats . | . . Traps | -11 -10 ------- Run | Yrd Mat Traps Triggered 3 | . 3 Indirectly . | . . Trap Hack Attempts 4 | . 4 Triggered . | . . Disarmed . | . . Reprogrammed 1 | . 1 Reused . | . . Traps Extracted . | . . Installed . | . . Triggered . | . . Machines | -11 -10 ---------- Run | Yrd Mat Machines Disabled . | . . Max in Single Turn . | . . Machines Repaired . | . . Machines Dismantled . | . . Machines Sabotaged . | . . Overloaded Fab Kills . | . . Hacking | -11 -10 --------- Run | Yrd Mat Machines Accessed 3 | . 3 Terminals 3 | . 3 Fabricators . | . . Repair Stations . | . . Recycling Units . | . . Scanalyzers . | . . Garrison Access . | . . Total Hacks 8 | . 8 Successful 5 | . 5 Failed 3 | . 3 Catastrophic . | . . Database Lockouts . | . . Manual 1 | . 1 Terminals 8 | . 8 Fabricators . | . . Repair Stations . | . . Recycling Units . | . . Scanalyzers . | . . Garrison Access . | . . Terminal Hacks 5 | . 5 Robot Analysis 2 | . 2 Prototype ID Bank 1 | . 1 Emergency Access Points 1 | . 1 Hauler Manifests 1 | . 1 Fabricator Hacks . | . . Repair Station Hacks . | . . Recycling Unit Hacks . | . . Scanalyzer . | . . Garrison Access Hacks . | . . Unauthorized Hacks . | . . Terminals . | . . Fabricators . | . . Repair Stations . | . . Recycling Units . | . . Scanalyzers . | . . Garrison Access . | . . Data Cores Recovered . | . . Used . | . . Hacking Detections 3 | . 3 Full Trace Events 1 | . 1 Feedback Events . | . . Feedback Blocked . | . . Robot Schematics Acquired . | . . Robots Built . | . . Authchips . | . . Time . | . . Total Robot Build Rating . | . . Part Schematics Acquired . | . . Parts Built . | . . Authchips . | . . Time . | . . Total Part Build Rating . | . . Parts Repaired . | . . Time . | . . Parts Recycled . | . . Recycled Matter . | . . Retrieved Matter . | . . Retrieved Components . | . . Parts Scanalyzed . | . . Part Schematics Acquired . | . . Parts Damaged . | . . Bothacking | -11 -10 ------------ Run | Yrd Mat Used RIF Installer . | . . Robots Hacked . | . . Non-combat . | . . Combat . | . . Robot Hacks Applied . | . . Relay Couplers Released . | . . Fabnet Peak Effective % . | . . Robots Rewired . | . . Allies Hacked . | . . Hacks Repelled . | . . Allies | -11 -10 -------- Run | Yrd Mat Total Allies . | . . Largest Group . | . . Highest-Rated Group . | . . Highest-Rated Ally . | . . Total Orders . | . . Ally Attacks . | . . Total Damage . | . . Kills . | . . Allies Corrupted . | . . Allies Melted . | . . Intel | -11 -10 ------- Run | Yrd Mat Robot Analysis Total 2 | . 2 Derelict Logs Recovered . | . . Drone Launches . | . . Drone Recoveries . | . . Exploration | -11 -10 ------------- Run | Yrd Mat Turns Passed 2205 | 50 2155 Spaces Moved 804 | 35 769 Core 39 | 16 23 Treads 239 | 19 220 Legs 526 | . 526 Wheels . | . . Hover . | . . Flight . | . . Fastest Speed 50 | 50 160 Average Speed 236 | 109 242 Slowest Speed 750 | 160 750 Overloaded Moves . | . . Propulsion Burnouts . | . . Robots Hopped . | . . Cave-ins Triggered . | . . Exploration Rate (%) 35 | 2 68 Regions Visited 1 Branch Regions . Pre-discovered Areas . | . . Known Exits Taken . | . . Unknown Exits Taken 1 | 1 . Scrap Searched . | . . Spaces Dug . | . . Terrain Destroyed . | . . Melee . | . . Projectile . | . . AOE . | . . Terrain Rammed . | . . Walls Destroyed . | . . Machines Disabled . | . . Actions | -11 -10 --------- Run | Yrd Mat Total 960 | 46 914 Wait . | . . Move 803 | 34 769 Hop . | . . Pick Up 35 | 6 29 Fast Attach 3 | 1 2 Attach 18 | 5 13 Detach 1 | . 1 Swap 2 | . 2 Drop 2 | . 2 Fire 85 | . 85 Melee . | . . Ram . | . . Kick 7 | . 7 Crush . | . . Escape Stasis . | . . Rewire . | . . Trap 4 | . 4 Miscellaneous . | . . Route ------- -11/Scrapyard -10/Materials (discovered 4 exits: [*Mat] / [*Min x2] / [*Sub]) History --------- Turn | Location | Event 6 | -11/Scrapyard | Discovered new exit (range 16) 51 | -11/Scrapyard | Entered Materials 304 | -10/Materials | Discovered new exit (range 8) 307 | -10/Materials | Build established: Mutant 414 | -10/Materials | Discovered new exit (range 6) 434 | -10/Materials | Core integrity fell below 50% 665 | -10/Materials | Core integrity fell below 20% 676 | -10/Materials | Discovered new exit (range 16) 692 | -10/Materials | Lost 3 parts (1p2n) 1068 | -10/Materials | Build established: Scavenger-Mutant 1408 | -10/Materials | Discovered new exit (range 6) 2206 | -10/Materials | Destroyed by G-47 Trooper with Particle Gun Last Messages --------------- 01669_ Acquired Lgt. Treads. 01671_ K-01 Serf collects debris. 01691_ R-06 Scavenger collects Med. Matter Pod. 02073_ Acquired 4 matter. 02107_ O-16 Technician destroyed. 02120_ Acquired 4 matter. 02125_ Acquired Datajack. 02131_ Acquired Hacking Suite. 02160_ K-01 Serf collects debris. 02168_ Acquired Assault Rifle. 02171_ K-01 Serf collects debris. 02172_ Acquired Assault Rifle. 02175_ K-01 Serf collects debris. 02176_ Acquired Assault Rifle. 02185_ Acquired Grenade Launcher. 02195_ G-34 Mercenary destroyed. 02196_ Lgt. Assault Rifle destroyed. 02200_ Aluminum Leg destroyed. 02204_ Lgt. Ion Engine destroyed. 02204_ Critical hit (Burn: +37). Map ----- +----------------------------------------------------+ | ?# ######### # | | ?# + + # ######### | | ?# # ############## ||| ##?###??## | | ?# # ##????#?#????# ||| ########## | | ?# # #???#####?#### || # | | #< # #????#??##???# % % # | | ###### ############## # | | ?????# % # | | ????#################### + | | ??##???###?#######???###+###+######## # | | #??#?? ? ?????###??##?# ####% #####+#### | | ????##? ? ???????#????# #" #??# #### | | ?????????????#??#??????# #"" ##?# ## | | ???##???????????? ?? ?## #|| #?## ## | | ???????????#???? ????# """ """ #"" < ##?# ## % | | #???????????#??? ?? ?? # """ R" #|| #??# ^ ! | | ?? ??????????????"???### """ """ #"" #?##### | | ?????????????#???""? ?## #" ###?#?### | | ???????????#??#??"" ?################ ####?#???# | | ????????????#######/## ##########t # ? ?????# | | ???????????? g +? ?""???# | | ??????????? [%= # ?T????? | | ??????????? # ????# ? | | ?????????? # ????? | | ??????????? #? ??? ? | | ??????????????? """ @ !| ""% #?###??#?? | | ?????????????? """ !| Y" #????????? | | ??????????????? """ ! !| "" ???#? | | ??????????? #???? | | ??????????? #???? | | ??????????? ########+### #???? | | ???????????? +??? ? ? ??? #???? | | ???????????? #####????? ? ???? #???? | | ???????????? #????? ????????? ##??? | | ?????????????######## #????????????????? ???? | | ????????????????????# ?????????????????? ??? | | ????????????????????#]]!!!?????????? ???????? ?? | | ????????????????????#]]!!!??##? ??????????????? ? | | ????????????????????#######??????????????????????? | | ?????????????????????????????????????????????????? | | ?????????????????????????????????????????????????? | | ?????????????????????????????????????????????????? | | ?????????????????????????????????????????????????? | | ?????????????????????????????????????????????????? | | ?????????????????????????????????????????????????? | | ?????????????????????????????????????????????????? | | ?????????????????????????????????????????????????? | | ?????????????????????????????????????????????????? | | ?????????????????????????????????????????????????? | | ?????????????????????????????????????????????????? | +----------------------------------------------------+ Best States ------------- Heat Dissipation 25 Energy Generation 10 Energy Capacity 125 Matter Stores 300 Matter Capacity 300 Sight Range 16 Terrain Scan Range 14 Terrain Scan Density 10 Evasion (%) 40 Recoil Reduction 2 Item Schematics ----------------- None Robot Schematics ------------------ None Fabricated ------------ Nothing Alien Tech Used ----------------- None Achievements -------------- None Challenges ------------ None Game ------ Seed FocalGodDisintegrator Manual? 0 Play Time 00:15:06 Cumulative 12.7 hours Start 2024.04.02 @ 14:04:33 End 2024.04.02 @ 14:19:44 Sessions 1 Manual Loads 0 Difficulty Rogue Special Mode None Game No. 24 Rogue 24 Adventurer 0 Explorer 0 Win Type - Total 0 Types 0/0/0/0/0/0/0/0/0 Lore% 18 Gallery% 15 Achievement% 15 Wizard Run 0 Options --------- Layout 1 ASCII 0 Keyboard 0 Movement Arrows Keybinds 0 Fullscreen 1 Font 24/Smallcaps Map View 50x35 Zoom Use 0% Tactical HUD 1 Map Filters NONE Filters NONE Steam 0 RUN: abcff2f0-9d73-45bd-aaf5-fc14653c4da6